Cogmind - Beta 9.5 @@@ ROGUE MODE // 2020.04.07 @ 12:06:06 Player: KernelPanic Result: Destroyed by S-27 Virus with Autogun Performance ------------- Evolutions (5) 2500 Regions Visited (12) 2400 Robots Destroyed (0) 0 Value Destroyed (0) 0 Prototype IDs (2) 40 Alien Tech Used (0) 0 Bonus (1987) 1987 TOTAL SCORE: 6927 Bonus ------- Pacifist 1987 Cogmind --------- Core Integrity 0/1000 Matter 240/300 Energy 96/100 System Corruption 0% Temperature Cool (0) Movement Core (50) Location -5/Hub_04(d) Parts ------- > --- POWER (2) -------- (None) > --- PROPULSION (7) --- (None) > --- UTILITY (6) ------ Advanced Signal Interpreter > --- WEAPON (2) ------- (None) > --- INVENTORY (4) ---- Light Treads Compact Wheel Peak State ------------ > --- POWER ------------ (None) > --- PROPULSION ------- Improved Flight Unit Improved Flight Unit Nuclear Pulse Array Nuclear Pulse Array > --- UTILITY ---------- Advanced Signal Interpreter Hacking Suite > --- WEAPON ----------- (None) > --- INVENTORY -------- Light Treads Compact Wheel [Rating: 36] Favorites ----------- Power Light Ion Engine Engine Light Ion Engine Propulsion Improved Flight Unit Leg Aluminum Leg Hover Unit Backup Propulsion I Flight Unit Improved Flight Unit Utility Advanced Signal Interpreter Device Advanced Terrain Scanner Storage Small Storage Unit Processor Advanced Signal Interpreter Hackware System Shield Protection Improved Medium Armor Plating Weapon EM Pulse Gun Energy Gun EM Pulse Gun Build | -11 -10 -10 -9 -9 -8 -7 -6 -5 -5 -5 -5 -5 ------- Run | Scr Mat Min Mat Min Mat Fac Fac Fac Ext Cet Arc Hub Slots Evolved 10 | . . . 2 . 2 2 2 2 . . . . Power 1 | . . . . . . 1 . . . . . . Propulsion 5 | . . . 1 . 1 1 1 1 . . . . Utility 4 | . . . 1 . 1 . 1 1 . . . . Weapon . | . . . . . . . . . . . . . Parts Attached 19 | . . . . . 5 8 . 1 1 . 1 3 Power 4 | . . . . . . 3 . . 1 . . . Engine 4 | . . . . . . 3 . . 1 . . . Core . | . . . . . . . . . . . . . Reactor . | . . . . . . . . . . . . . Propulsion 7 | . . . . . 4 . . 1 . . . 2 Treads . | . . . . . . . . . . . . . Leg . | . . . . . . . . . . . . . Wheel . | . . . . . . . . . . . . . Hover . | . . . . . . . . . . . . . Flight 7 | . . . . . 4 . . 1 . . . 2 Utility 7 | . . . . . 1 5 . . . . . 1 Device 1 | . . . . . 1 . . . . . . . Storage . | . . . . . . . . . . . . . Processor 2 | . . . . . . 2 . . . . . . Hackware 2 | . . . . . . 1 . . . . . 1 Protection 2 | . . . . . . 2 . . . . . . Artifact . | . . . . . . . . . . . . . Weapon 1 | . . . . . . . . . . . 1 . Energy Gun 1 | . . . . . . . . . . . 1 . Energy Cannon . | . . . . . . . . . . . . . Ballistic Gun . | . . . . . . . . . . . . . Ballistic Cannon . | . . . . . . . . . . . . . Launcher . | . . . . . . . . . . . . . Special Weapon . | . . . . . . . . . . . . . Impact Weapon . | . . . . . . . . . . . . . Slashing Weapon . | . . . . . . . . . . . . . Piercing Weapon . | . . . . . . . . . . . . . Special Melee Weapon . | . . . . . . . . . . . . . Unidentified Prototypes 2 | . . . . . 1 1 . . . . . . Parts Lost 19 | . . 1 . . 3 . . 1 3 . 6 5 Power 3 | . . . . . . . . 1 1 . 1 . Propulsion 8 | . . . . . 1 . . . 1 . 2 4 Utility 4 | . . . . . . . . . 1 . 2 1 Weapon 4 | . . 1 . . 2 . . . . . 1 . Highest Loss Streak 6 | . . 1 . . 3 . . 1 3 . 6 5 Average Slot Usage (%) 45 | . 69 35 . . 49 60 66 58 56 47 44 19 Engine 9 | . 14 13 . . 9 13 13 8 5 5 5 . Leg 1 | . 17 . . . . . . . . . . . Flight 14 | . . . . . 16 30 26 26 28 23 20 10 Device 3 | . . . . . 6 7 6 5 5 5 2 . Storage 3 | . 14 13 . . . . . . . . . . Processor 3 | . . . . . . 1 13 11 11 11 11 5 Hackware 1 | . . . . . . . 6 5 4 . . 2 Protection 1 | . . . . . . 5 . . . . . . Energy Gun 4 | . 22 8 . . 9 . . . . . 2 . Naked Turns 103 | . . 18 31 51 3 . . . . . . . Heaviest Build 17 | 11 11 9 . . 4 17 17 17 13 12 13 . Greatest Support 40 | 20 20 3 3 3 24 24 24 33 33 27 27 40 Greatest Overweight (x) 2 | . 2 2 . . . . . . . . . . Average Overweight (x) . | . . 1 . . . . . . . . . . Largest Inventory Capacity 6 | . 6 6 4 4 4 4 4 4 4 4 4 4 Average Capacity 4 | . 6 5 4 4 4 4 4 4 4 4 4 4 Most Carried 6 | . 6 6 4 4 4 4 4 4 4 3 3 2 Average Carried 4 | . 6 5 4 4 4 3 4 4 3 3 2 2 Final Capacity 6 | 6 6 4 4 4 4 4 4 4 4 4 4 4 Final Carried 6 | 6 6 4 4 4 4 4 4 4 3 3 2 2 Class Distribution -------------------- 55% | Mutant 44% | Sprinter Dominant Class ---------------- Mutant | -10/Materials Mutant | -10/Mines Mutant | -9/Materials Mutant | -9/Mines Mutant | -8/Materials Sprinter | -7/Factory Sprinter | -6/Factory Sprinter | -5/Factory Sprinter | -5/Extension Sprinter | -5/Cetus Sprinter | -5/Archives Mutant | -5/Hub_04(d) Resources | -11 -10 -10 -9 -9 -8 -7 -6 -5 -5 -5 -5 -5 ----------- Run | Scr Mat Min Mat Min Mat Fac Fac Fac Ext Cet Arc Hub Matter Collected 214 | 185 . . . . . . . . . . . 29 Remotely . | . . . . . . . . . . . . . Salvage Created . | . . . . . . . . . . . . . Parts . | . . . . . . . . . . . . . Haulers Intercepted . | . . . . . . . . . . . . . Recyclers Shooed . | . . . . . . . . . . . . . Parts Field Recycled . | . . . . . . . . . . . . . Retrieved Matter . | . . . . . . . . . . . . . Parts Self-Destructed . | . . . . . . . . . . . . . Prevented . | . . . . . . . . . . . . . Kills | -11 -10 -10 -9 -9 -8 -7 -6 -5 -5 -5 -5 -5 ------- Run | Scr Mat Min Mat Min Mat Fac Fac Fac Ext Cet Arc Hub Combat Hostiles Destroyed . | . . . . . . . . . . . . . Classes Destroyed . | . . . . . . . . . . . . . Best Kill Streak . | . . . . . . . . . . . . . Combat Bots Only . | . . . . . . . . . . . . . Max Kills in Single Turn . | . . . . . . . . . . . . . Gunslinging . | . . . . . . . . . . . . . Exploded . | . . . . . . . . . . . . . Melee . | . . . . . . . . . . . . . Uniques/NPCs Destroyed . | . . . . . . . . . . . . . Combat | -11 -10 -10 -9 -9 -8 -7 -6 -5 -5 -5 -5 -5 -------- Run | Scr Mat Min Mat Min Mat Fac Fac Fac Ext Cet Arc Hub Damage Taken 2576 | . 77 275 . 106 307 89 . 74 416 161 379 692 Core 1509 | . 45 159 . 106 164 33 . . 254 139 181 428 Absorbed by Shields . | . . . . . . . . . . . . . Core Remaining (%) 76 | 100 . 18 . 73 70 95 100 . . . . . Volleys Fired . | . . . . . . . . . . . . . Largest . | . . . . . . . . . . . . . Hottest . | . . . . . . . . . . . . . Shots Fired . | . . . . . . . . . . . . . Gun . | . . . . . . . . . . . . . Cannon . | . . . . . . . . . . . . . Launcher . | . . . . . . . . . . . . . Special . | . . . . . . . . . . . . . Kinetic . | . . . . . . . . . . . . . Thermal . | . . . . . . . . . . . . . Explosive . | . . . . . . . . . . . . . Electromagnetic . | . . . . . . . . . . . . . Robot Hit Streak . | . . . . . . . . . . . . . Robot Miss Streak . | . . . . . . . . . . . . . Penetration Max . | . . . . . . . . . . . . . Secondary Targets . | . . . . . . . . . . . . . Shots Hit Robots . | . . . . . . . . . . . . . Core Hits 3 | . . 2 . . . . . . . . . 1 Critical Hits . | . . . . . . . . . . . . . Critical Kills . | . . . . . . . . . . . . . Critical Parts Destroyed . | . . . . . . . . . . . . . Melee Attacks . | . . . . . . . . . . . . . Impact . | . . . . . . . . . . . . . Slashing . | . . . . . . . . . . . . . Piercing . | . . . . . . . . . . . . . Sneak Attacks . | . . . . . . . . . . . . . Combat Hostiles . | . . . . . . . . . . . . . Follow-up Attacks . | . . . . . . . . . . . . . Damage Inflicted 21 | . . 9 . . 3 . . . . . . 9 Guns . | . . . . . . . . . . . . . Cannons . | . . . . . . . . . . . . . Explosions . | . . . . . . . . . . . . . Melee . | . . . . . . . . . . . . . Ramming 21 | . . 9 . . 3 . . . . . . 9 Kinetic . | . . . . . . . . . . . . . Thermal . | . . . . . . . . . . . . . Explosive . | . . . . . . . . . . . . . Electromagnetic . | . . . . . . . . . . . . . Impact . | . . . . . . . . . . . . . Slashing . | . . . . . . . . . . . . . Piercing . | . . . . . . . . . . . . . Highest Corruption 1 | . . 1 . . . . . . . . . . Average Corruption 1 | . . 1 . . . . . . . . . . Corruption Purged . | . . . . . . . . . . . . . Overload Shots . | . . . . . . . . . . . . . Overflow Damage . | . . . . . . . . . . . . . Projectiles . | . . . . . . . . . . . . . Explosions . | . . . . . . . . . . . . . Melee . | . . . . . . . . . . . . . Knockbacks . | . . . . . . . . . . . . . Impact . | . . . . . . . . . . . . . Kinetic . | . . . . . . . . . . . . . Secondary . | . . . . . . . . . . . . . Self-Inflicted Damage 9 | . . 4 . . 1 . . . . . . 4 Shots . | . . . . . . . . . . . . . Rammed 12 | . . 7 . . 1 . . . . . 2 2 Targets Rammed 12 | . . 7 . . 1 . . . . . 2 2 Kicked . | . . . . . . . . . . . . . Crushed . | . . . . . . . . . . . . . Highest Temperature 19 | . . . . . . 5 . 2 19 . 13 . Average Temperature 10 | . . . . . . 5 . 2 11 . 13 . Received Heat Transfer 591 | . 42 156 . . 9 27 . 36 99 27 72 123 Siege Activations . | . . . . . . . . . . . . . Robots Corrupted . | . . . . . . . . . . . . . Combat Hostiles . | . . . . . . . . . . . . . Parts Fried . | . . . . . . . . . . . . . Impact Corruptions . | . . . . . . . . . . . . . Robots Melted . | . . . . . . . . . . . . . Combat Hostiles . | . . . . . . . . . . . . . Parts Melted . | . . . . . . . . . . . . . Heat Transferred . | . . . . . . . . . . . . . Parts Sabotaged . | . . . . . . . . . . . . . Parts Stolen . | . . . . . . . . . . . . . Parts Stripped . | . . . . . . . . . . . . . Power Chain Reactions . | . . . . . . . . . . . . . Missiles Intercepted . | . . . . . . . . . . . . . Alert | -11 -10 -10 -9 -9 -8 -7 -6 -5 -5 -5 -5 -5 ------- Run | Scr Mat Min Mat Min Mat Fac Fac Fac Ext Cet Arc Hub Peak Influence 153 | . 23 23 38 14 41 153 104 55 56 46 53 60 Average Influence 32 | . 10 5 21 14 15 70 79 47 39 38 26 34 Maximum Alert Level . | . . . . . . . . . . . . . Low Security (%) 100 | . 100 100 100 100 100 100 100 100 100 100 100 100 Level 1 . | . . . . . . . . . . . . . Level 2 . | . . . . . . . . . . . . . Level 3 . | . . . . . . . . . . . . . Level 4 . | . . . . . . . . . . . . . Level 5 . | . . . . . . . . . . . . . High Security . | . . . . . . . . . . . . . Max Security . | . . . . . . . . . . . . . Squads Dispatched 10 | . 1 . 2 . 1 1 . 1 1 . . 3 Investigation 3 | . . . . . . 1 . . . . . 2 Extermination . | . . . . . . . . . . . . . Reinforcement 7 | . 1 . 2 . 1 . . 1 1 . . 1 Assault . | . . . . . . . . . . . . . Garrison . | . . . . . . . . . . . . . Intercept . | . . . . . . . . . . . . . Construction Impeded . | . . . . . . . . . . . . . Haulers Reinforced . | . . . . . . . . . . . . . Stealth | -11 -10 -10 -9 -9 -8 -7 -6 -5 -5 -5 -5 -5 --------- Run | Scr Mat Min Mat Min Mat Fac Fac Fac Ext Cet Arc Hub Distress Signals 4 | . . . . . . 2 . . 1 1 . . Communications Jammed . | . . . . . . . . . . . . . Distress Signals . | . . . . . . . . . . . . . Times Spotted 102 | . 3 3 6 2 11 10 1 8 17 5 9 27 Peak Tracking Total 20 | . 3 2 4 2 7 6 1 9 15 5 4 20 Tactical Retreats 9 | . . 1 . . 1 3 . . 2 . . 2 Traps | -11 -10 -10 -9 -9 -8 -7 -6 -5 -5 -5 -5 -5 ------- Run | Scr Mat Min Mat Min Mat Fac Fac Fac Ext Cet Arc Hub Traps Triggered 1 | . 1 . . . . . . . . . . . Indirectly . | . . . . . . . . . . . . . Trap Hack Attempts . | . . . . . . . . . . . . . Triggered . | . . . . . . . . . . . . . Disarmed . | . . . . . . . . . . . . . Reprogrammed . | . . . . . . . . . . . . . Reused . | . . . . . . . . . . . . . Traps Extracted . | . . . . . . . . . . . . . Installed . | . . . . . . . . . . . . . Triggered . | . . . . . . . . . . . . . Machines | -11 -10 -10 -9 -9 -8 -7 -6 -5 -5 -5 -5 -5 ---------- Run | Scr Mat Min Mat Min Mat Fac Fac Fac Ext Cet Arc Hub Machines Disabled . | . . . . . . . . . . . . . Max in Single Turn . | . . . . . . . . . . . . . Machines Sabotaged . | . . . . . . . . . . . . . Garrisons Compromised . | . . . . . . . . . . . . . Overloaded Fab Kills . | . . . . . . . . . . . . . Fab Network Shutdowns . | . . . . . . . . . . . . . Hacking | -11 -10 -10 -9 -9 -8 -7 -6 -5 -5 -5 -5 -5 --------- Run | Scr Mat Min Mat Min Mat Fac Fac Fac Ext Cet Arc Hub Machines Accessed 11 | . 1 1 . . 1 1 1 1 2 1 . 2 Terminals 10 | . 1 1 . . . 1 1 1 2 1 . 2 Fabricators . | . . . . . . . . . . . . . Repair Stations 1 | . . . . . 1 . . . . . . . Recycling Units . | . . . . . . . . . . . . . Scanalyzers . | . . . . . . . . . . . . . Garrison Access . | . . . . . . . . . . . . . Total Hacks 23 | . 2 4 . . 2 2 2 1 3 1 . 6 Successful 11 | . 1 3 . . 1 . . 1 2 1 . 2 Failed 12 | . 1 1 . . 1 2 2 . 1 . . 4 Catastrophic 1 | . . . . . . . 1 . . . . . Database Lockouts . | . . . . . . . . . . . . . Manual 16 | . 2 6 . . . 2 2 . . . 1 3 Terminals 21 | . 2 4 . . . 2 2 1 3 1 . 6 Fabricators . | . . . . . . . . . . . . . Repair Stations 2 | . . . . . 2 . . . . . . . Recycling Units . | . . . . . . . . . . . . . Scanalyzers . | . . . . . . . . . . . . . Garrison Access . | . . . . . . . . . . . . . Terminal Hacks 10 | . 1 3 . . . . . 1 2 1 . 2 Record 4 | . . 2 . . . . . . 1 . . 1 Open Door 2 | . . . . . . . . 1 . 1 . . Branch Access Points 1 | . . . . . . . . . 1 . . . Fabricator Index 2 | . 1 1 . . . . . . . . . . Unreport Threat 1 | . . . . . . . . . . . . 1 Fabricator Hacks . | . . . . . . . . . . . . . Repair Station Hacks 1 | . . . . . 1 . . . . . . . Refit 1 | . . . . . 1 . . . . . . . Recycling Unit Hacks . | . . . . . . . . . . . . . Scanalyzer . | . . . . . . . . . . . . . Garrison Access Hacks . | . . . . . . . . . . . . . Unauthorized Hacks . | . . . . . . . . . . . . . Terminals . | . . . . . . . . . . . . . Fabricators . | . . . . . . . . . . . . . Repair Stations . | . . . . . . . . . . . . . Recycling Units . | . . . . . . . . . . . . . Scanalyzers . | . . . . . . . . . . . . . Garrison Access . | . . . . . . . . . . . . . Data Cores Recovered . | . . . . . . . . . . . . . Used . | . . . . . . . . . . . . . Hacking Detections 7 | . . 1 . . 1 1 1 1 . . . 2 Full Trace Events 3 | . . . . . . 1 . . . . . 2 Feedback Events . | . . . . . . . . . . . . . Feedback Blocked . | . . . . . . . . . . . . . Robot Schematics Acquired . | . . . . . . . . . . . . . Robots Built . | . . . . . . . . . . . . . Matter . | . . . . . . . . . . . . . Time . | . . . . . . . . . . . . . Total Robot Build Rating . | . . . . . . . . . . . . . Part Schematics Acquired . | . . . . . . . . . . . . . Parts Built . | . . . . . . . . . . . . . Matter . | . . . . . . . . . . . . . Time . | . . . . . . . . . . . . . Total Part Build Rating . | . . . . . . . . . . . . . Parts Repaired . | . . . . . . . . . . . . . Time . | . . . . . . . . . . . . . Parts Recycled . | . . . . . . . . . . . . . Recycled Matter . | . . . . . . . . . . . . . Retrieved Matter . | . . . . . . . . . . . . . Retrieved Components . | . . . . . . . . . . . . . Parts Scanalyzed . | . . . . . . . . . . . . . Part Schematics Acquired . | . . . . . . . . . . . . . Parts Damaged . | . . . . . . . . . . . . . Bothacking | -11 -10 -10 -9 -9 -8 -7 -6 -5 -5 -5 -5 -5 ------------ Run | Scr Mat Min Mat Min Mat Fac Fac Fac Ext Cet Arc Hub Used RIF Installer . | . . . . . . . . . . . . . Robots Hacked . | . . . . . . . . . . . . . Non-combat . | . . . . . . . . . . . . . Combat . | . . . . . . . . . . . . . Robot Hacks Applied . | . . . . . . . . . . . . . Relay Couplers Released . | . . . . . . . . . . . . . Robots Rewired . | . . . . . . . . . . . . . Allies Hacked . | . . . . . . . . . . . . . Hacks Repelled . | . . . . . . . . . . . . . Allies | -11 -10 -10 -9 -9 -8 -7 -6 -5 -5 -5 -5 -5 -------- Run | Scr Mat Min Mat Min Mat Fac Fac Fac Ext Cet Arc Hub Total Allies . | . . . . . . . . . . . . . Largest Group . | . . . . . . . . . . . . . Highest-Rated Group . | . . . . . . . . . . . . . Highest-Rated Ally . | . . . . . . . . . . . . . Total Orders . | . . . . . . . . . . . . . Ally Attacks . | . . . . . . . . . . . . . Total Damage . | . . . . . . . . . . . . . Kills . | . . . . . . . . . . . . . Allies Corrupted . | . . . . . . . . . . . . . Allies Melted . | . . . . . . . . . . . . . Intel | -11 -10 -10 -9 -9 -8 -7 -6 -5 -5 -5 -5 -5 ------- Run | Scr Mat Min Mat Min Mat Fac Fac Fac Ext Cet Arc Hub Robot Analysis Total . | . . . . . . . . . . . . . Derelict Logs Recovered 2 | . . 2 . . . . . . . . . . Drone Launches . | . . . . . . . . . . . . . Drone Recoveries . | . . . . . . . . . . . . . Exploration | -11 -10 -10 -9 -9 -8 -7 -6 -5 -5 -5 -5 -5 ------------- Run | Scr Mat Min Mat Min Mat Fac Fac Fac Ext Cet Arc Hub Turns Passed 1094 | . 114 214 31 51 96 229 21 36 142 52 22 86 Spaces Moved 1940 | 1 90 158 62 102 174 380 78 132 307 190 56 210 Core 378 | . 25 158 62 102 5 . . . . . . 26 Treads . | . . . . . . . . . . . . . Legs 66 | 1 65 . . . . . . . . . . . Wheels . | . . . . . . . . . . . . . Hover 58 | . . . . . 58 . . . . . . . Flight 1438 | . . . . . 111 380 78 132 307 190 56 184 Fastest Speed 24 | 120 120 50 50 50 26 26 26 24 24 27 27 30 Average Speed 44 | 120 128 127 50 50 48 27 26 25 24 27 29 37 Slowest Speed 150 | 120 150 150 50 50 80 35 26 30 27 27 32 50 Overloaded Moves . | . . . . . . . . . . . . . Propulsion Burnouts . | . . . . . . . . . . . . . Robots Hopped 20 | . . . . . 1 2 2 2 2 . 2 9 Cave-ins Triggered . | . . . . . . . . . . . . . Exploration Rate (%) 28 | 2 23 23 11 23 26 15 3 6 57 71 73 39 Regions Visited 12 Branch Regions 6 Pre-discovered Areas 1 | . . 1 . . . . . . . . . . Known Exits Taken 6 | . . . . . . 1 1 1 1 1 1 . Unknown Exits Taken 6 | 1 1 1 1 1 1 . . . . . . . Scrap Searched . | . . . . . . . . . . . . . Spaces Dug . | . . . . . . . . . . . . . Terrain Destroyed . | . . . . . . . . . . . . . Melee . | . . . . . . . . . . . . . Projectile . | . . . . . . . . . . . . . AOE . | . . . . . . . . . . . . . Actions | -11 -10 -10 -9 -9 -8 -7 -6 -5 -5 -5 -5 -5 --------- Run | Scr Mat Min Mat Min Mat Fac Fac Fac Ext Cet Arc Hub Total 2124 | . 89 166 61 101 181 498 75 130 370 189 58 206 Wait 178 | . . . . . 2 109 . . 65 . 2 . Move 1889 | . 89 157 61 101 171 375 73 127 302 189 51 193 Hop 19 | . . . . . 1 2 2 2 2 . 2 8 Pick Up . | . . . . . . . . . . . . . Fast Attach 16 | . . . . . 5 7 . 1 . . . 3 Attach 3 | . . . . . . 1 . . 1 . 1 . Detach 1 | . . . . . . 1 . . . . . . Swap . | . . . . . . . . . . . . . Drop 6 | . . 2 . . 1 3 . . . . . . Fire . | . . . . . . . . . . . . . Melee . | . . . . . . . . . . . . . Ram 12 | . . 7 . . 1 . . . . . 2 2 Kick . | . . . . . . . . . . . . . Crush . | . . . . . . . . . . . . . Escape Stasis . | . . . . . . . . . . . . . Rewire . | . . . . . . . . . . . . . Trap . | . . . . . . . . . . . . . Miscellaneous . | . . . . . . . . . . . . . Route ------- -11/Scrapyard -10/Materials -10/Mines -9/Materials (discovered 2 exits: [*Min] / Sto) -9/Mines -8/Materials -7/Factory -6/Factory -5/Factory -5/Extension (discovered 2 exits: *Fac / *Cet) -5/Cetus (discovered 2 exits: *Fac / *Arc) -5/Archives -5/Hub_04(d) (discovered 1 exit: *Fac) History --------- Turn | Location | Event 1 | -11/Scrapyard | Discovered new exit (range 0) 1 | -11/Scrapyard | Entered Materials 100 | -10/Materials | Discovered new exit (range 7) 115 | -10/Materials | Entered Mines 148 | -10/Mines | Learned 4 Materials zone layouts 208 | -10/Mines | Learned location of Mines (-9) 265 | -10/Mines | Core integrity fell below 50% 283 | -10/Mines | Discovered new exit (range 5) 305 | -10/Mines | Build established: Mutant 328 | -10/Mines | Core integrity fell below 20% 329 | -10/Mines | Entered Materials 329 | -9/Materials | Evolved 2 slots: Propulsion x1, Utility x1 330 | -9/Materials | Identified exit to Storage 355 | -9/Materials | Discovered new exit (range 11) 360 | -9/Materials | Entered Mines 361 | -9/Mines | Assembled infested the area 410 | -9/Mines | Discovered new exit (range 2) 411 | -9/Mines | Entered Materials 411 | -8/Materials | Evolved 2 slots: Propulsion x1, Utility x1 497 | -8/Materials | Lost 3 parts (1n2w) 503 | -8/Materials | Discovered new exit (range 10) 507 | -8/Materials | Entered Factory 507 | -7/Factory | Evolved 2 slots: Power x1, Propulsion x1 734 | -7/Factory | Discovered new exit (range 4) 735 | -7/Factory | Identified exit to Factory 736 | -7/Factory | Entered another Factory area 736 | -6/Factory | Evolved 2 slots: Propulsion x1, Utility x1 755 | -6/Factory | Discovered new exit (range 5) 756 | -6/Factory | Identified exit to Factory 757 | -6/Factory | Entered another Factory area 757 | -5/Factory | Evolved 2 slots: Propulsion x1, Utility x1 792 | -5/Factory | Discovered new exit (range 6) 792 | -5/Factory | Identified exit to Extension 793 | -5/Factory | Entered Extension 811 | -5/Extension | Identified exit to Cetus 835 | -5/Extension | Build established: Sprinter 905 | -5/Extension | Spotted B-75 Beast 907 | -5/Extension | Spotted B-75 Beast 932 | -5/Extension | Discovered new exit (range 14) 935 | -5/Extension | Entered Cetus 940 | -5/Cetus | Spotted Cetus Guard 940 | -5/Cetus | Spotted Cetus Guard 940 | -5/Cetus | Spotted Cetus Guard 940 | -5/Cetus | Spotted Cetus Guard 946 | -5/Cetus | Lost 3 parts (1p1n1u) 946 | -5/Cetus | Discovered new exit (range 16) 950 | -5/Cetus | Identified exit to Factory 982 | -5/Cetus | Discovered new exit (range 16) 986 | -5/Cetus | Identified exit to Archives 987 | -5/Cetus | Entered Archives 998 | -5/Archives | Unable to access archive contents 1001 | -5/Archives | Core integrity fell below 50% 1003 | -5/Archives | Unable to access archive contents 1005 | -5/Archives | Discovered new exit (range 13) 1008 | -5/Archives | Identified exit to Hub_04(d) 1009 | -5/Archives | Entered Hub_04(d) 1016 | -5/Hub_04(d) | Discovered exit to Factory (range 15) 1035 | -5/Hub_04(d) | Lost 6 parts (1p2n2u1w) 1072 | -5/Hub_04(d) | Spotted B-75 Beast 1081 | -5/Hub_04(d) | Core integrity fell below 20% 1095 | -5/Hub_04(d) | Destroyed by S-27 Virus with Autogun Last Messages --------------- 01042_ Slug penetrates Wall. 01043_ Penetrated by Slug. 01044_ Slug penetrates Wall. 01047_ Penetrated by Slug. 01047_ Imp. Flight Unit destroyed. 01048_ Nuclear Pulse Array destroyed. 01049_ Penetrated by Slug. 01049_ T-07 Excavator destroyed. 01051_ Penetrated by Slug. 01051_ Slug penetrates Wall. 01051_ Acquired 29 matter. 01052_ Nuclear Pulse Array destroyed. 01070_ K-01 Serf cleans the Archive Unit. 01076_ Connecting with Terminal... 01076_ ALERT: Suspicious activity at Terminal H007. Dispatching Investigation squad. 01080_ Imp. Flight Unit destroyed. 01080_ Hacking Suite destroyed. 01090_ Penetrated by Slug. 01092_ Slammed into S-27 Virus. Map ----- +----------------------------------------------------+ | ??????????????????????????????? | | ??????????????????????????????? | | ??????????????????????????????? | | ??????????????????????????????? | | ??????????????????????????????? | | ??????????????????????????????? | | ??????????????????????????????? | | ??????????????????????????????? | | ??????????????????????????????? | | ??????????????????????????????? | | ??????????????????????????????? | | ??????????????????????????????? | | ??????????????????????????????? | | ??????????? ???????????????? | | ???????????# ???????????????? | | ?????????### #??????????????? | | ????? ##########?????? | | ?????# #?????? | | ????"" ######## #?????? | | ????"" """ "#?????# #?????? | | ????"T !!"#?????# #?????? | | ????"" ! "#######s#####?? | | ????"" T## ss ! #?? | | ?????# "## #?? | | ?##### !! "## " #?? | | ?? ! "## """@ #?? | | ?????# ### """"" #?? | | +##### + """"""" #?? | | ##"" + """"" #?? | | ##"" "## """ #?? | | "" ##"" "?# " #?? | | "" ##T ### #?? | | "" ##"" # #?? | | "" ##"" ############?? | | ##"" ###????????????? | | / #??????????????? | | ] ## #??????????????? | | ####/#" #??????????????? | | "T" #?# "#####??????????????? | | """ #?#" ##??????????????????? | | #####?#" #???????????????????? | | ??????#" #???????????????????? | | ??????#T ]#???????????????????? | | ??????#" #???????????????????? | | ??????#" !#???????????????????? | | ??????#" #???????????????????? | | ??????# #???????????????????? | | ??????#####???????????????????? | | ??????????????????????????????? | | ??????????????????????????????? | +----------------------------------------------------+ Best States ------------- Heat Dissipation 40 Energy Generation 27 Energy Capacity 350 Matter Stores 300 Matter Capacity 300 Sight Range 16 Terrain Scan Range 20 Terrain Scan Density 10 Armor Coverage 825 Evasion (%) 65 Offensive Hacking 10 Defensive Hacking 10 Item Schematics ----------------- None Robot Schematics ------------------ None Fabricated ------------ Nothing Alien Tech Used ----------------- None Achievements -------------- None Challenges ------------ None Game ------ Seed PropulsionDerelictUnit Manual? 0 Play Time 00:20:09 Cumulative 111.1 hours Start 2020.04.07 @ 11:40:05 End 2020.04.07 @ 12:06:06 Sessions 1 Manual Loads 0 Difficulty Rogue Special Mode None Game No. 198 Rogue 195 Adventurer 1 Explorer 2 Win Type - Total 4 Types 4/0/0/0/0/0/0 Lore% 64 Gallery% 64 Achievement% 53 Wizard Run 0 Options --------- ASCII 0 Keyboard 1 Movement Numpad Keybinds 0 Fullscreen 1 Font 18/SmallcapsGlow Map View 76x50 Tactical HUD 1 Map Filters NONE Filters NONE Steam 1 RUN: db7f9efe-41ef-4c43-b680-684d18f3baad